[Event "Kragero Resort Chess A 2019"]
[Site "Kragero"]
[Date "2019.02.22"]
[Round "5.22"]
[White "Gudmundsson, Bjorgvin S"]
[Black "Lund, Gunnar"]
[Result "0-1"]
[ECO "A41"]
[WhiteElo "1941"]
[BlackElo "2211"]
[Annotator "NA"]
[PlyCount "80"]
[EventDate "2019.02.20"]
[EventType "swiss"]
[EventCountry "NOR"]
[SourceTitle "playchess.com"]
[Source "ChessBase"]
[SourceQuality "1"]
[TimeControl "5400+30"]

1. d4 {[%emt 0:00:00]} d6 {[%emt 0:00:00]} 2. Nf3 {[%emt 0:00:22]} g6 {[%emt 0:00:00]} 3. c4 {[%emt 0:00:06]} Bg7 {[%emt 0:00:00]} 4. Nc3 {[%emt 0:00:05]} Nd7 {[%emt 0:00:08]} 5. b3 {[%emt 0:09:33]} e5 {[%emt 0:02:50]} 6. e3 {[%emt 0:00:15]} Ne7 {[%emt 0:00:48]} 7. Be2 {[%emt 0:00:38]} O-O {[%emt 0:00:20]} 8. dxe5 {[%emt 0:01:57]} dxe5 {[%emt 0:10:19]} 9. Bb2 {[%emt 0:00:23]} b6 {[%emt 0:09:59]} 10. O-O {[%emt 0:01:02]} Bb7 {[%emt 0:00:03]} 11. Qc2 {[%emt 0:07:47]} Qc8 {[%emt 0:08:09]} 12. Rad1 {[%emt 0:04:45]} Re8 {[%emt 0:00:47]} 13. Rd2 {[%emt 0:05:59]} Nf5 {[%emt 0:01:54]} 14. Rfd1 {[%emt 0:05:25]} Nf8 {[%emt 0:00:06]} 15. Ne4 {[%emt 0:03:09]} c5 {[%emt 0:08:24]} 16. g4 {[%emt 0:23:10]} Nxe3 {[%emt 0:08:02]} 17. fxe3 {[%emt 0:07:26]} Qxg4+ {[%emt 0:02:02]} 18. Kf2 {[%emt 0:02:36]} Qxe4 {[%emt 0:05:37]} 19. Qxe4 {[%emt 0:03:12]} Bxe4 {[%emt 0:01:16]} 20. Ng5 {[%emt 0:00:22]} Bb7 {[%emt 0:00:54]} 21. Rd6 {[%emt 0:00:51]} f6 {[%emt 0:01:58]} 22. Nf3 {[%emt 0:01:20]} Kf7 {[%emt 0:00:57]} 23. b4 {[%emt 0:00:57]} cxb4 {[%emt 0:04:10]} 24. c5 {[%emt 0:00:23]} bxc5 {[%emt 0:04:41]} 25. Bb5 {[%emt 0:00:42]} Reb8 {[%emt 0:00:46]} 26. e4 {[%emt 0:13:18]} Kg8 {[%emt 0:02:16]} 27. Bxe5 {[%emt 0:05:37]} fxe5 {[%emt 0:09:19]} 28. Bc4+ {[%emt 0:00:07]} Kh8 {[%emt 0:00:02]} 29. Ng5 {[%emt 0:00:05]} h6 {[%emt 0:00:02]} 30. Nf7+ {[%emt 0:01:47]} Kh7 {[%emt 0:00:00]} 31. R1d3 {[%emt 0:00:10]} Bc8 {[%emt 0:01:39]} 32. Bd5 {[%emt 0:01:33]} c4 {[%emt 0:07:19]} 33. Rg3 {[%emt 0:00:20]} Be6 {[%emt 0:01:44]} 34. Bxe6 {[%emt 0:01:05]} Nxe6 {[%emt 0:00:06]} 35. Rxe6 {[%emt 0:00:04]} g5 {[%emt 0:01:07]} 36. Nxh6 {[%emt 0:00:55]} Rb6 {[%emt 0:04:10]} 37. Re7 {[%emt 0:00:31]} Kxh6 {[%emt 0:00:45]} 38. h4 {[%emt 0:00:16]} Bf6 {[%emt 0:00:34]} 39. hxg5+ {[%emt 0:00:23]} Bxg5 {[%emt 0:00:01]} 40. Rxe5 {[%emt 0:00:17]} Bh4 {[%emt 0:00:08]} 0-1

[Event "Kragero Resort Chess A 2019"]
[Site "Kragero"]
[Date "2019.02.22"]
[Round "5.23"]
[White "Wedda, Dries"]
[Black "Aarnes, Eirik"]
[Result "1/2-1/2"]
[ECO "A07"]
[WhiteElo "2173"]
[BlackElo "1843"]
[Annotator "NA"]
[PlyCount "87"]
[EventDate "2019.02.20"]
[EventType "swiss"]
[EventCountry "NOR"]
[SourceTitle "playchess.com"]
[Source "ChessBase"]
[SourceQuality "1"]
[TimeControl "5400+30"]

1. Nf3 {[%emt 0:00:00]} d5 {[%emt 0:00:00]} 2. g3 {[%emt 0:00:08]} Nf6 {[%emt 0:00:00]} 3. Bg2 {[%emt 0:00:06]} Bf5 {[%emt 0:01:00]} 4. O-O {[%emt 0:00:22]} e6 {[%emt 0:00:18]} 5. d3 {[%emt 0:03:39]} h6 {[%emt 0:03:48]} 6. Nbd2 {[%emt 0:02:56]} Nbd7 {[%emt 0:02:35]} 7. Re1 {[%emt 0:04:19]} Bc5 {[%emt 0:04:30]} 8. h3 {[%emt 0:06:17]} O-O {[%emt 0:03:18]} 9. e4 {[%emt 0:03:26]} dxe4 {[%emt 0:00:06]} 10. dxe4 {[%emt 0:00:40]} Bh7 {[%emt 0:00:40]} 11. Qe2 {[%emt 0:06:15]} c6 {[%emt 0:01:30]} 12. b3 {[%emt 0:03:32]} Qc7 {[%emt 0:04:21]} 13. Kh2 {[%emt 0:05:00]} b5 {[%emt 0:12:21]} 14. Bb2 {[%emt 0:02:33]} Qb6 {[%emt 0:01:47]} 15. Kg1 {[%emt 0:12:43]} Nh5 {[%emt 0:08:19]} 16. Kf1 {[%emt 0:00:24]} Nhf6 {[%emt 0:04:00]} 17. Nh2 {[%emt 0:03:42]} e5 {[%emt 0:02:40]} 18. Bf3 {[%emt 0:02:30]} Rad8 {[%emt 0:02:56]} 19. Kg2 {[%emt 0:02:43]} Rfe8 {[%emt 0:00:17]} 20. Red1 {[%emt 0:08:09]} Bg6 {[%emt 0:06:50]} 21. Ndf1 {[%emt 0:04:48]} Bd4 {[%emt 0:02:08]} 22. c3 {[%emt 0:00:24]} Bc5 {[%emt 0:00:07]} 23. a3 {[%emt 0:07:40]} Nf8 {[%emt 0:00:43]} 24. Ng4 {[%emt 0:03:06]} Nxg4 {[%emt 0:00:48]} 25. Bxg4 {[%emt 0:00:08]} Qb8 {[%emt 0:06:02]} 26. h4 {[%emt 0:02:55]} Rxd1 {[%emt 0:00:58]} 27. Rxd1 {[%emt 0:00:11]} Rd8 {[%emt 0:00:05]} 28. f3 {[%emt 0:01:59]} f6 {[%emt 0:00:52]} 29. Bc1 {[%emt 0:06:41]} Bf7 {[%emt 0:00:16]} 30. Qc2 {[%emt 0:00:33]} a5 {[%emt 0:05:46]} 31. b4 {[%emt 0:01:21]} Bb6 {[%emt 0:00:26]} 32. Rxd8 {[%emt 0:02:27]} Qxd8 {[%emt 0:00:05]} 33. Qd2 {[%emt 0:00:10]} Qxd2+ {[%emt 0:01:27]} 34. Bxd2 {[%emt 0:00:18]} axb4 {[%emt 0:00:06]} 35. axb4 {[%emt 0:00:10]} Ne6 {[%emt 0:01:28]} 36. Bxe6 {[%emt 0:02:05]} Bxe6 {[%emt 0:00:07]} 37. Be3 {[%emt 0:00:07]} Bd8 {[%emt 0:03:40]} 38. Bc5 {[%emt 0:00:06]} g6 {[%emt 0:00:14]} 39. Ne3 {[%emt 0:00:35]} Kf7 {[%emt 0:01:16]} 40. Kf2 {[%emt 0:02:17]} f5 {[%emt 0:01:37]} 41. Bd6 {[%emt 0:01:04]} Kf6 {[%emt 0:00:33]} 42. Bf8 {[%emt 0:00:46]} h5 {[%emt 0:00:55]} 43. Bh6 {[%emt 0:00:53]} Bb6 {[%emt 0:00:11]} 44. Bg5+ {[%emt 0:00:10]} 1/2-1/2

[Event "Kragero Resort Chess A 2019"]
[Site "Kragero"]
[Date "2019.02.22"]
[Round "5.24"]
[White "Kazarian, Anna-Maja"]
[Black "Tenold, Andreas"]
[Result "1/2-1/2"]
[ECO "E18"]
[WhiteElo "2189"]
[BlackElo "1822"]
[Annotator "NA"]
[PlyCount "49"]
[EventDate "2019.02.20"]
[EventType "swiss"]
[EventCountry "NOR"]
[SourceTitle "playchess.com"]
[Source "ChessBase"]
[SourceQuality "1"]
[TimeControl "5400+30"]

1. Nf3 {[%emt 0:00:00]} e6 {[%emt 0:00:00]} 2. g3 {[%emt 0:00:58]} b6 {[%emt 0:00:27]} 3. Bg2 {[%emt 0:00:44]} Bb7 {[%emt 0:00:07]} 4. O-O {[%emt 0:02:57]} Nf6 {[%emt 0:00:18]} 5. d4 {[%emt 0:00:40]} Be7 {[%emt 0:01:01]} 6. c4 {[%emt 0:01:15]} O-O {[%emt 0:01:06]} 7. Nc3 {[%emt 0:00:27]} Ne4 {[%emt 0:00:10]} 8. Nxe4 {[%emt 0:08:35]} Bxe4 {[%emt 0:01:10]} 9. d5 {[%emt 0:02:44]} d6 {[%emt 0:11:38]} 10. Qd4 {[%emt 0:09:20]} Bxf3 {[%emt 0:02:38]} 11. Bxf3 {[%emt 0:00:09]} e5 {[%emt 0:00:21]} 12. Qd1 {[%emt 0:03:53]} f5 {[%emt 0:04:00]} 13. Bg2 {[%emt 0:03:38]} Nd7 {[%emt 0:05:44]} 14. f4 {[%emt 0:06:29]} exf4 {[%emt 0:15:09]} 15. Bxf4 {[%emt 0:02:29]} Bf6 {[%emt 0:02:29]} 16. Qc2 {[%emt 0:02:38]} Nc5 {[%emt 0:06:52]} 17. Rab1 {[%emt 0:20:29]} a5 {[%emt 0:02:48]} 18. b3 {[%emt 0:02:25]} Qe7 {[%emt 0:03:53]} 19. a3 {[%emt 0:05:29]} Rae8 {[%emt 0:06:11]} 20. b4 {[%emt 0:06:52]} axb4 {[%emt 0:01:15]} 21. axb4 {[%emt 0:00:05]} Ne4 {[%emt 0:00:59]} 22. Rbd1 {[%emt 0:14:25]} Nc3 {[%emt 0:05:37]} 23. Rde1 {[%emt 0:00:06]} Ne4 {[%emt 0:01:23]} 24. Rd1 {[%emt 0:01:14]} Nc3 {[%emt 0:02:33]} 25. Rde1 {[%emt 0:00:22]} 1/2-1/2

[Event "Kragero Resort Chess A 2019"]
[Site "Kragero"]
[Date "2019.02.22"]
[Round "5.25"]
[White "Bergsson, Stefan"]
[Black "Stray, Gunnar"]
[Result "1/2-1/2"]
[ECO "B82"]
[WhiteElo "2172"]
[BlackElo "1994"]
[Annotator "NA"]
[PlyCount "167"]
[EventDate "2019.02.20"]
[EventType "swiss"]
[EventCountry "NOR"]
[SourceTitle "playchess.com"]
[Source "ChessBase"]
[SourceQuality "1"]
[TimeControl "5400+30"]

1. e4 {[%emt 0:00:00]} c5 {[%emt 0:00:00]} 2. Nf3 {[%emt 0:00:00]} e6 {[%emt 0:00:00]} 3. d4 {[%emt 0:00:00]} cxd4 {[%emt 0:00:00]} 4. Nxd4 {[%emt 0:00:00]} Nc6 {[%emt 0:00:00]} 5. Nc3 {[%emt 0:00:00]} Qc7 {[%emt 0:00:00]} 6. Be3 {[%emt 0:00:02]} a6 {[%emt 0:00:05]} 7. f4 {[%emt 0:00:05]} d6 {[%emt 0:01:02]} 8. Qf3 {[%emt 0:00:07]} Nf6 {[%emt 0:00:26]} 9. O-O-O {[%emt 0:00:11]} Bd7 {[%emt 0:00:54]} 10. g4 {[%emt 0:03:57]} Nxd4 {[%emt 0:06:07]} 11. Bxd4 {[%emt 0:00:06]} Bc6 {[%emt 0:00:08] B82: Sicilian Scheveningen: 6 f4} 12. Bd3 $146 {[%emt 0:01:36]} ({Predecessor:} 12. g5 Nd7 13. Bh3 O-O-O 14. Rhe1 Kb8 15. Kb1 b5 16. a3 Re8 17. Qh5 Nc5 18. b4 Nb7 19. f5 {1-0 (35) Hernandez Montes,J (2266)-Zuluaga,C (2305) Medellin 2017}) 12... Nd7 {[%emt 0:05:30]} 13. Rhe1 {[%emt 0:03:29]} O-O-O {[%emt 0:01:39]} 14. Bf2 {[%emt 0:04:11]} g5 {[%emt 0:05:08]} 15. h4 {[%emt 0:02:38]} gxf4 {[%emt 0:01:25]} 16. Qxf4 {[%emt 0:00:00]} Ne5 {[%emt 0:00:40]} 17. Bf1 {[%emt 0:00:54]} Bg7 {[%emt 0:00:53]} 18. Kb1 {[%emt 0:04:07]} Rhg8 {[%emt 0:04:22]} 19. g5 {[%emt 0:01:00]} Rh8 {[%emt 0:07:13]} 20. Bd4 {[%emt 0:10:38]} Ng6 {[%emt 0:09:26]} 21. Qg3 {[%emt 0:00:17]} Be5 {[%emt 0:00:53]} 22. Qg4 {[%emt 0:01:04]} Bxd4 {[%emt 0:02:39]} 23. Rxd4 {[%emt 0:00:05]} Ne5 {[%emt 0:00:12]} 24. Qd1 {[%emt 0:03:39]} h6 {[%emt 0:01:16]} 25. gxh6 {[%emt 0:00:13]} Rxh6 {[%emt 0:00:33]} 26. h5 {[%emt 0:00:02]} Qe7 {[%emt 0:02:21]} 27. b4 {[%emt 0:04:05]} f5 {[%emt 0:09:06]} 28. b5 {[%emt 0:03:48]} axb5 {[%emt 0:01:42]} 29. Nxb5 {[%emt 0:04:20]} Bxb5 {[%emt 0:00:59]} 30. Bxb5 {[%emt 0:00:03]} f4 {[%emt 0:00:23]} 31. Ra4 {[%emt 0:02:43]} Nd7 {[%emt 0:05:45]} 32. Qd4 {[%emt 0:10:14]} Nc5 {[%emt 0:01:30]} 33. Ra8+ {[%emt 0:00:28]} Kc7 {[%emt 0:00:14]} 34. Rxd8 {[%emt 0:00:11]} Kxd8 {[%emt 0:00:20]} 35. e5 {[%emt 0:01:46]} d5 {[%emt 0:04:21]} 36. Rg1 {[%emt 0:01:05]} Qf8 {[%emt 0:02:41]} 37. Qb4 {[%emt 0:04:03]} Kc7 {[%emt 0:06:36]} 38. Be2 {[%emt 0:16:37]} Rh7 {[%emt 0:04:45]} 39. Rg6 {[%emt 0:02:22]} b6 {[%emt 0:00:47]} 40. Rf6 {[%emt 0:00:38]} Qg7 {[%emt 0:03:34]} 41. Qxf4 {[%emt 0:04:58]} Qg1+ {[%emt 0:01:39]} 42. Kb2 {[%emt 0:00:15]} Ne4 {[%emt 0:00:32]} 43. Rf7+ {[%emt 0:03:06]} Kc6 {[%emt 0:02:02]} 44. a3 {[%emt 0:08:40]} Qd4+ {[%emt 0:01:31]} 45. Kb3 {[%emt 0:02:59]} Qc3+ {[%emt 0:00:44]} 46. Ka2 {[%emt 0:00:06]} Qxc2+ {[%emt 0:00:11]} 47. Ka1 {[%emt 0:00:01]} Rxf7 {[%emt 0:02:43]} 48. Qxf7 {[%emt 0:00:08]} Qxe2 {[%emt 0:01:44]} 49. Qxe6+ {[%emt 0:00:14]} Kc5 {[%emt 0:00:26]} 50. Qe7+ {[%emt 0:01:01]} Kd4 {[%emt 0:00:38]} 51. Qb4+ {[%emt 0:00:34]} Kxe5 {[%emt 0:00:24]} 52. h6 {[%emt 0:00:48]} Qf1+ {[%emt 0:01:40]} 53. Kb2 {[%emt 0:00:25]} Qg2+ {[%emt 0:00:19]} 54. Kb3 {[%emt 0:01:15]} Qh3+ {[%emt 0:01:17]} (54... Nc5+ $142 55. Kc3 Qf2 56. Qb1 Ne4+ 57. Kb3 Nd2+ 58. Ka2 Nxb1+ 59. Kxb1 d4 60. h7 Qf5+ 61. Kc1 Qxh7 62. Kd2 Qb1 63. Ke2 Kf4 64. Kd2 Kf3 65. a4 Qb2+ 66. Kd1 Ke3 67. Ke1 Qe2#) 55. Ka4 {[%emt 0:00:10]} Qxh6 {[%emt 0:01:13]} 56. Kb5 {[%emt 0:00:05]} Qd6 {[%emt 0:01:11]} 57. Qb2+ {[%emt 0:00:08]} Ke6 {[%emt 0:00:15]} 58. Qg7 {[%emt 0:00:03]} Qc5+ {[%emt 0:00:39]} 59. Ka6 {[%emt 0:00:07]} Qa5+ {[%emt 0:01:40]} (59... Nd6 $142 60. Ka7 b5+ 61. Ka6 Qc6+ 62. Ka7 Qd7+ 63. Qxd7+ Kxd7 64. Kb6 d4 65. a4 bxa4 66. Kc5 d3 67. Kd5 d2 68. Kd4 a3 69. Kd5 a2 70. Kd4 d1=Q+ 71. Ke3 a1=Q 72. Kf2 Qg1+ 73. Kf3 Qaf1#) 60. Kb7 {[%emt 0:00:02]} Nd6+ {[%emt 0:00:24]} 61. Kb8 {[%emt 0:00:25]} Qxa3 {[%emt 0:01:06]} (61... Qc5 $142 62. Qg4+ Nf5 63. Qg8+ Ke5 64. Qh8+ Kf4 65. Qh2+ Kg5 66. Qd2+ Kf6 67. Qb2+ d4) 62. Qh7 $2 {[%emt 0:01:52]} (62. Qh6+ Kd7 63. Qg7+ Kc6 64. Qc7+ Kb5 65. Qc6+ Ka5 66. Qxb6+ Ka4 67. Qa6+ Kb3 68. Qd3+ Kb4 69. Qd4+ Nc4 70. Qxd5) 62... Qc5 {[%emt 0:00:35]} 63. Qg6+ {[%emt 0:00:17]} Ke5 {[%emt 0:00:22]} 64. Qh5+ {[%emt 0:00:07]} Kd4 {[%emt 0:00:18]} 65. Qd1+ {[%emt 0:00:07]} Kc4 {[%emt 0:00:24]} 66. Qa4+ {[%emt 0:00:12]} Qb4 {[%emt 0:01:20]} 67. Qc6+ {[%emt 0:00:06]} Kd4 {[%emt 0:00:21]} 68. Qc1 {[%emt 0:00:31]} Qc4 {[%emt 0:00:30]} 69. Qg1+ {[%emt 0:00:24]} Ke5 {[%emt 0:00:54]} 70. Qg7+ {[%emt 0:01:39]} Ke6 {[%emt 0:01:10]} 71. Qg6+ {[%emt 0:00:18]} Ke7 {[%emt 0:00:14]} 72. Qg5+ {[%emt 0:00:19]} Ke6 $2 {[%emt 0:01:07]} ({Black should try} 72... Kd7 $19 73. Qg7+ Kc6 74. Qc7+ Kb5 75. Qxd6 d4 76. Qe5+ (76. Qd7+ Kb4) 76... Ka4) 73. Qg6+ $1 {[%emt 0:00:26]} Ke5 $11 {[%emt 0:00:35]} (73... Kd7 $19) 74. Qg7+ {[%emt 0:02:18]} Kf5 {[%emt 0:00:38]} 75. Qh7+ {[%emt 0:01:21]} Kg4 {[%emt 0:00:11]} 76. Qg6+ {[%emt 0:00:22]} Kf3 {[%emt 0:00:30]} 77. Qh5+ {[%emt 0:00:25]} Kg3 {[%emt 0:00:36]} 78. Qg5+ {[%emt 0:00:17]} Qg4 {[%emt 0:00:39]} 79. Qxd5 {[%emt 0:00:52]} Qc8+ {[%emt 0:00:24]} 80. Ka7 {[%emt 0:00:04]} Qc7+ {[%emt 0:00:43]} 81. Ka6 {[%emt 0:00:49]} Qc8+ {[%emt 0:00:35]} 82. Kxb6 {[%emt 0:00:54]} Qb7+ {[%emt 0:00:21]} 83. Qxb7 {[%emt 0:00:09]} Nxb7 {[%emt 0:00:03]} 84. Kxb7 {[%emt 0:00:07]} 1/2-1/2

[Event "Kragero Resort Chess A 2019"]
[Site "Kragero"]
[Date "2019.02.22"]
[Round "5.26"]
[White "Sebastian, Andreas"]
[Black "Rishovd, Svein"]
[Result "0-1"]
[ECO "D00"]
[WhiteElo "1962"]
[BlackElo "2116"]
[Annotator "NA"]
[PlyCount "32"]
[EventDate "2019.02.20"]
[EventType "swiss"]
[EventCountry "NOR"]
[SourceTitle "playchess.com"]
[Source "ChessBase"]
[SourceQuality "1"]
[TimeControl "5400+30"]

1. d4 {[%emt 0:00:00]} d5 {[%emt 0:00:00]} 2. Nc3 {[%emt 0:00:00]} e6 {[%emt 0:00:22]} 3. Bf4 {[%emt 0:00:00]} Nf6 {[%emt 0:01:36]} 4. e3 {[%emt 0:00:06]} Be7 {[%emt 0:03:54]} 5. Nb5 {[%emt 0:00:19]} Na6 {[%emt 0:00:13]} 6. Nf3 {[%emt 0:00:25]} O-O {[%emt 0:01:15]} 7. Bd3 {[%emt 0:00:20]} c6 {[%emt 0:02:54]} 8. Nc3 {[%emt 0:00:05]} Nb4 {[%emt 0:00:58]} 9. Be2 {[%emt 0:01:08]} c5 {[%emt 0:01:09]} 10. Ne5 {[%emt 0:02:00]} Nc6 {[%emt 0:02:42]} 11. g4 {[%emt 0:11:40]} cxd4 {[%emt 0:04:03]} 12. exd4 {[%emt 0:00:37]} Qb6 {[%emt 0:06:14]} 13. Nxc6 {[%emt 0:10:17]} bxc6 {[%emt 0:00:45]} 14. Rb1 {[%emt 0:01:32]} Ba6 {[%emt 0:04:58]} 15. Be5 {[%emt 0:02:24]} Nd7 {[%emt 0:02:47]} 16. Bc7 {[%emt 0:04:03]} Bxe2 {[%emt 0:02:17]} 0-1

[Event "Kragero Resort Chess A 2019"]
[Site "Kragero"]
[Date "2019.02.22"]
[Round "5.27"]
[White "Nilsen, Jarle"]
[Black "Kizatbay, Abyl"]
[Result "0-1"]
[ECO "D91"]
[WhiteElo "1845"]
[BlackElo "2084"]
[Annotator "NA"]
[PlyCount "82"]
[EventDate "2019.02.20"]
[EventType "swiss"]
[EventCountry "NOR"]
[SourceTitle "playchess.com"]
[Source "ChessBase"]
[SourceQuality "1"]
[TimeControl "5400+30"]

1. d4 {[%emt 0:00:00]} Nf6 {[%emt 0:00:00]} 2. c4 {[%emt 0:00:00]} g6 {[%emt 0:00:00]} 3. Nc3 {[%emt 0:00:00]} d5 {[%emt 0:00:00]} 4. Bg5 {[%emt 0:00:00]} Ne4 {[%emt 0:01:25]} 5. Nf3 {[%emt 0:01:28]} Nxg5 {[%emt 0:01:01]} 6. Nxg5 {[%emt 0:00:03]} Bg7 {[%emt 0:09:52]} 7. e3 {[%emt 0:02:43]} O-O {[%emt 0:03:05]} 8. Be2 {[%emt 0:03:42]} e5 {[%emt 0:04:54]} 9. Nf3 {[%emt 0:02:59]} exd4 {[%emt 0:06:51]} 10. exd4 {[%emt 0:01:19]} dxc4 {[%emt 0:00:28]} 11. O-O {[%emt 0:04:33]} Nc6 {[%emt 0:03:01]} 12. d5 {[%emt 0:02:37]} Ne5 {[%emt 0:01:05]} 13. Nxe5 {[%emt 0:10:11]} Bxe5 {[%emt 0:00:03]} 14. f4 {[%emt 0:00:39]} Bg7 {[%emt 0:00:52]} 15. Bxc4 {[%emt 0:01:03]} Bf5 {[%emt 0:02:40]} 16. Qb3 {[%emt 0:08:36]} c6 {[%emt 0:09:13]} 17. Rad1 {[%emt 0:02:06]} cxd5 {[%emt 0:03:57]} 18. Nxd5 {[%emt 0:03:14]} Bg4 {[%emt 0:03:06]} 19. Rd2 {[%emt 0:06:28]} Qa5 {[%emt 0:02:24]} 20. Qd3 {[%emt 0:13:49]} Qc5+ {[%emt 0:03:26]} 21. Kh1 {[%emt 0:01:24]} Bf5 {[%emt 0:10:58]} 22. Qb3 {[%emt 0:01:43]} Rfd8 {[%emt 0:02:10]} 23. Rfd1 {[%emt 0:04:55]} Kh8 {[%emt 0:03:03]} 24. Be2 {[%emt 0:05:06]} b6 {[%emt 0:05:36]} 25. Bf3 {[%emt 0:04:33]} Rac8 {[%emt 0:00:46]} 26. h3 {[%emt 0:04:03]} Bc2 {[%emt 0:02:06]} 27. Rxc2 {[%emt 0:07:20]} Qxc2 {[%emt 0:00:10]} 28. Qa3 {[%emt 0:00:17]} Rd7 {[%emt 0:05:58]} 29. b3 {[%emt 0:03:05]} Rcd8 {[%emt 0:02:26]} 30. Qa4 {[%emt 0:01:03]} h6 {[%emt 0:01:43]} 31. Qb5 {[%emt 0:02:13]} Qxd1+ {[%emt 0:02:25]} 32. Bxd1 {[%emt 0:00:26]} Rxd5 {[%emt 0:00:03]} 33. Qc4 {[%emt 0:00:57]} Rxd1+ {[%emt 0:00:07]} 34. Kh2 {[%emt 0:00:01]} Kg8 {[%emt 0:00:57]} 35. h4 {[%emt 0:00:18]} h5 {[%emt 0:00:50]} 36. a4 {[%emt 0:01:17]} R1d2 {[%emt 0:00:48]} 37. Qe4 {[%emt 0:00:27]} Rb2 {[%emt 0:01:04]} 38. f5 {[%emt 0:00:17]} Rdd2 {[%emt 0:00:39]} 39. Qe8+ {[%emt 0:00:25]} Bf8 {[%emt 0:00:21]} 40. fxg6 {[%emt 0:00:27]} Rxg2+ {[%emt 0:00:08]} 41. Kh1 {[%emt 0:00:54]} fxg6 {[%emt 0:01:31]} 0-1

[Event "Kragero Resort Chess A 2019"]
[Site "Kragero"]
[Date "2019.02.22"]
[Round "5.28"]
[White "Sidali, Elias Hulleberg"]
[Black "Jonsson, Gauti Pall"]
[Result "1/2-1/2"]
[ECO "B27"]
[WhiteElo "1840"]
[BlackElo "2070"]
[Annotator "NA"]
[PlyCount "87"]
[EventDate "2019.02.20"]
[EventType "swiss"]
[EventCountry "NOR"]
[SourceTitle "playchess.com"]
[Source "ChessBase"]
[SourceQuality "1"]
[TimeControl "5400+30"]

1. e4 {[%emt 0:00:00]} c5 {[%emt 0:00:00]} 2. Nf3 {[%emt 0:00:00]} g6 {[%emt 0:00:02]} 3. d4 {[%emt 0:00:00]} cxd4 {[%emt 0:00:20]} 4. Qxd4 {[%emt 0:00:00]} Nf6 {[%emt 0:00:17]} 5. Nc3 {[%emt 0:00:00]} Nc6 {[%emt 0:00:23]} 6. Qa4 {[%emt 0:00:06]} d6 {[%emt 0:00:58]} 7. e5 {[%emt 0:00:04]} dxe5 {[%emt 0:00:30]} 8. Nxe5 {[%emt 0:00:02]} Bg7 {[%emt 0:00:50]} 9. Bb5 {[%emt 0:00:59]} O-O {[%emt 0:00:17]} 10. Nxc6 {[%emt 0:00:28]} bxc6 {[%emt 0:00:36]} 11. Bxc6 {[%emt 0:00:41]} Rb8 {[%emt 0:00:21]} 12. O-O {[%emt 0:00:16]} Qc7 {[%emt 0:01:31]} 13. Nd5 {[%emt 0:04:55]} Nxd5 {[%emt 0:02:44]} 14. Bxd5 {[%emt 0:00:02]} Be5 {[%emt 0:03:22]} 15. h3 {[%emt 0:01:42]} Bf5 {[%emt 0:01:26]} 16. Bb3 {[%emt 0:04:05]} Rfd8 {[%emt 0:03:03]} 17. c3 {[%emt 0:02:29]} Rd6 {[%emt 0:07:45]} 18. Re1 {[%emt 0:00:38]} Bh2+ {[%emt 0:04:50]} 19. Kh1 {[%emt 0:00:07]} Rbd8 {[%emt 0:02:13]} 20. Qc4 {[%emt 0:02:44]} Qxc4 {[%emt 0:07:21]} 21. Bxc4 {[%emt 0:00:04]} Rc6 {[%emt 0:00:36]} 22. Kxh2 {[%emt 0:01:01]} Rxc4 {[%emt 0:00:32]} 23. Rxe7 {[%emt 0:00:07]} a5 {[%emt 0:00:44]} 24. Re5 {[%emt 0:04:45]} a4 {[%emt 0:00:46]} 25. Bh6 {[%emt 0:00:48]} Be6 {[%emt 0:02:31]} 26. Re3 {[%emt 0:02:29]} Rc5 {[%emt 0:01:12]} 27. Re4 {[%emt 0:00:09]} Rb5 {[%emt 0:01:06]} 28. Rb4 {[%emt 0:01:43]} Ra5 {[%emt 0:04:35]} 29. Be3 {[%emt 0:00:08]} Rd3 {[%emt 0:01:21]} 30. a3 {[%emt 0:02:34]} Bb3 {[%emt 0:01:15]} 31. Rd4 {[%emt 0:00:58]} Rd5 {[%emt 0:00:34]} 32. Rxd3 {[%emt 0:01:11]} Rxd3 {[%emt 0:00:09]} 33. Rc1 {[%emt 0:00:09]} Bc4 {[%emt 0:00:14]} 34. Rc2 {[%emt 0:01:02]} h5 {[%emt 0:02:44]} 35. Rd2 {[%emt 0:00:06]} Rxd2 {[%emt 0:00:20]} 36. Bxd2 {[%emt 0:00:05]} Kf8 {[%emt 0:00:30]} 37. Kg3 {[%emt 0:00:07]} Ke7 {[%emt 0:00:19]} 38. Kf4 {[%emt 0:00:15]} Kd6 {[%emt 0:00:23]} 39. h4 {[%emt 0:01:18]} Bd5 {[%emt 0:05:15]} 40. g3 {[%emt 0:00:23]} Kc5 {[%emt 0:00:20]} 41. c4 {[%emt 0:03:18]} Kxc4 {[%emt 0:00:51]} 42. f3 {[%emt 0:00:10]} Kd3 {[%emt 0:00:21]} 43. Bc3 {[%emt 0:00:06]} Ke2 {[%emt 0:00:42]} 44. Bf6 {[%emt 0:00:09]} 1/2-1/2

[Event "Kragero Resort Chess A 2019"]
[Site "Kragero"]
[Date "2019.02.22"]
[Round "5.29"]
[White "Flasen, Aleksander"]
[Black "Schouten, Mathias Lind"]
[Result "1-0"]
[ECO "C11"]
[WhiteElo "2036"]
[BlackElo "1943"]
[Annotator "NA"]
[PlyCount "47"]
[EventDate "2019.02.20"]
[EventType "swiss"]
[EventCountry "NOR"]
[SourceTitle "playchess.com"]
[Source "ChessBase"]
[SourceQuality "1"]
[TimeControl "5400+30"]

1. e4 {[%emt 0:00:00]} e6 {[%emt 0:00:00]} 2. Nf3 {[%emt 0:00:00]} d5 {[%emt 0:00:02]} 3. Nc3 {[%emt 0:00:03]} Nf6 {[%emt 0:00:35]} 4. e5 {[%emt 0:00:16]} Nfd7 {[%emt 0:00:07]} 5. d4 {[%emt 0:00:25]} c5 {[%emt 0:00:07]} 6. dxc5 {[%emt 0:00:30]} Bxc5 {[%emt 0:01:36]} 7. Bd3 {[%emt 0:00:42]} Nc6 {[%emt 0:00:20]} 8. Bf4 {[%emt 0:00:11]} Qb6 {[%emt 0:03:13]} 9. O-O {[%emt 0:01:58]} Qxb2 {[%emt 0:02:56]} 10. Nb5 {[%emt 0:01:56]} O-O {[%emt 0:02:27]} 11. Bxh7+ {[%emt 0:06:38]} Kxh7 {[%emt 0:00:10]} 12. Ng5+ {[%emt 0:03:28]} Kg6 {[%emt 0:00:06]} 13. Qd3+ {[%emt 0:01:18]} f5 {[%emt 0:01:38]} 14. exf6+ {[%emt 0:01:34]} Kxf6 {[%emt 0:00:09]} 15. Rfb1 {[%emt 0:01:39]} Nb4 {[%emt 0:01:29]} 16. Qe2 {[%emt 0:03:47]} Qxb1+ {[%emt 0:04:04]} 17. Rxb1 {[%emt 0:00:09]} e5 {[%emt 0:01:16]} 18. Nh7+ {[%emt 0:01:18]} Kf7 {[%emt 0:01:00]} 19. Nxf8 {[%emt 0:00:29]} exf4 {[%emt 0:00:04]} 20. Nxd7 {[%emt 0:01:41]} Bxd7 {[%emt 0:00:04]} 21. c3 {[%emt 0:05:54]} Bf5 {[%emt 0:04:26]} 22. cxb4 {[%emt 0:01:49]} Bxb1 {[%emt 0:00:26]} 23. bxc5 {[%emt 0:00:08]} Kf8 {[%emt 0:00:52]} 24. Nd6 {[%emt 0:00:56]} 1-0